bitfinex-derivatives/quotes_BNBF0:USTF0_20251027
["timestamp","ask_amount","ask_price","bid_price","bid_amount"]
[1761590107875,0.49520632,1147.2,1145.4,1.3032371]
[1761590108075,0.49520632,1147.1,1145.4,1.3032371]
[1761590108376,0.49520632,1147.0,1145.4,1.3032371]
[1761590108574,1.089,1147.3,1145.4,1.3032371]
[1761590108777,0.49511084,1147.2,1145.4,1.3032371]
[1761590108977,0.49511084,1147.1,1145.4,1.3032371]
[1761590109278,1.089,1147.3,1145.7,1.3032371]
[1761590109478,0.49518317,1147.2,1145.8,1.3032371]
[1761590109679,0.49518317,1147.1,1145.8,1.3032371]
[1761590109879,1.089,1147.3,1145.7,1.3032371]
[1761590110078,0.49519093,1147.2,1145.7,1.3032371]
[1761590110280,0.49519093,1147.1,1145.7,1.3032371]
[1761590110578,1.089,1147.3,1145.7,1.3032371]
[1761590110777,0.4950563,1147.2,1145.7,1.3032371]
[1761590111079,0.4950563,1147.1,1145.6,1.3032371]
[1761590111281,1.089,1147.3,1145.6,1.3032371]
[1761590111481,0.49497486,1147.2,1145.6,1.3032371]
[1761590111681,0.49497486,1147.1,1145.6,1.3032371]
[1761590111878,1.089,1147.3,1145.6,1.3032371]
[1761590112183,0.49499905,1147.2,1145.6,1.3032371]
[1761590112384,0.49499905,1147.1,1145.6,1.3032371]
[1761590112578,1.089,1147.3,1145.7,1.3032371]
[1761590112886,0.49491913,1147.2,1145.8,1.3032371]
[1761590113080,1.089,1147.3,1145.8,1.3032371]
[1761590113384,0.49496615,1147.2,1145.8,1.3032371]
[1761590113583,1.089,1147.3,1145.8,1.3032371]
[1761590113779,0.49483186,1147.2,1145.8,1.3032371]
[1761590113978,1.089,1147.3,1145.8,1.3032371]
[1761590114180,0.49482369,1147.2,1145.8,1.3032371]
[1761590114380,1.089,1147.3,1146.0,1.3032371]
[1761590114583,1.089,1147.3,1144.7,2.28009043]
[1761590114584,0.49470137,1147.2,1145.9,1.3032371]
[1761590114784,0.49467071,1147.1,1145.9,1.3032371]
[1761590114985,1.089,1147.3,1145.8,1.3032371]
[1761590115184,0.4946638,1147.2,1145.6,1.3032371]
[1761590115384,0.4946638,1147.1,1145.6,1.3032371]
[1761590115586,1.089,1147.3,1145.6,1.3032371]
[1761590115885,0.49463409,1147.2,1145.6,1.3032371]
[1761590116085,0.49463409,1147.1,1145.6,1.3032371]
[1761590116385,1.089,1147.3,1145.6,1.3032371]
[1761590116586,0.4945884,1147.2,1145.6,1.3032371]
[1761590116886,0.4945884,1147.1,1145.5,1.3032371]
[1761590117086,1.089,1147.3,1145.5,1.3032371]
[1761590117381,0.49456922,1147.2,1145.5,1.3032371]
[1761590117587,0.49456922,1147.1,1145.5,1.3032371]
[1761590117783,1.089,1147.3,1145.5,1.3032371]
[1761590117981,0.49454196,1147.2,1145.5,1.3032371]
[1761590118185,0.49454196,1147.1,1145.5,1.3032371]
[1761590118387,1.089,1147.3,1145.5,1.3032371]
[1761590118687,0.4945133,1147.2,1145.5,1.3032371]
[1761590118886,1.089,1147.3,1145.5,1.3032371]
[1761590119083,0.49454262,1147.2,1145.5,1.3032371]
[1761590119286,1.089,1147.3,1145.5,1.3032371]
[1761590119485,0.49456281,1147.2,1145.5,1.3032371]
[1761590119690,1.089,1147.3,1145.5,1.3032371]
[1761590119888,0.49454179,1147.2,1145.5,1.3032371]
[1761590120091,1.089,1147.3,1145.5,1.3032371]
[1761590120288,0.49463535,1147.2,1145.5,1.3032371]
[1761590120492,1.089,1147.3,1145.5,1.3032371]
[1761590120696,0.49455094,1147.2,1145.5,1.3032371]
[1761590120896,1.089,1147.3,1145.5,1.3032371]
[1761590121097,0.49455175,1147.2,1145.5,1.3032371]
[1761590121392,1.089,1147.3,1145.5,1.3032371]
[1761590121593,0.4944869,1147.2,1145.5,1.3032371]
[1761590121796,1.089,1147.3,1145.5,1.3032371]
[1761590122093,0.4944344,1147.2,1145.5,1.3032371]
[1761590122296,1.089,1147.3,1145.5,1.3032371]
[1761590122492,0.49437423,1147.2,1145.5,1.3032371]
[1761590122795,1.089,1147.3,1145.5,1.3032371]
[1761590122994,0.49438187,1147.2,1145.5,1.3032371]
[1761590123192,1.089,1147.3,1145.5,1.3032371]
[1761590123492,0.49438204,1147.2,1145.5,1.3032371]
[1761590123691,1.089,1147.3,1145.5,1.3032371]
[1761590123896,0.49432486,1147.2,1145.5,1.3032371]
[1761590124193,1.089,1147.3,1145.6,1.3032371]
[1761590124494,0.49433152,1147.2,1145.6,1.3032371]
[1761590124695,1.089,1147.3,1145.9,1.3032371]
[1761590124893,1.089,1147.3,1145.8,1.3032371]
[1761590130296,1.089,1147.3,1145.7,1.3032371]
[1761590134801,1.089,1147.3,1145.8,1.3032371]
[1761590134998,1.089,1147.3,1145.7,1.3032371]
[1761590137504,1.089,1147.3,1145.6,1.3032371]
[1761590139310,1.089,1147.3,1145.7,1.3032371]
[1761590139609,1.089,1147.3,1145.6,1.3032371]
[1761590141111,1.089,1147.3,1144.9,2.1283265]
[1761590141112,0.49296887,1147.2,1145.4,1.3032371]
[1761590141308,1.089,1147.3,1145.4,1.3032371]
[1761590141610,0.49301177,1147.2,1145.4,1.3032371]
[1761590141808,1.089,1147.3,1145.4,1.3032371]
[1761590142011,0.49304588,1147.2,1145.4,1.3032371]
[1761590142212,1.089,1147.3,1145.4,1.3032371]
[1761590144814,1.089,1147.3,1145.3,1.3032371]
[1761590146512,0.4933131,1147.2,1145.4,1.3032371]
[1761590146716,1.089,1147.3,1145.4,1.3032371]
[1761590147011,0.49332086,1147.2,1145.4,1.3032371]
[1761590147216,1.089,1147.3,1145.4,1.3032371]
[1761590147416,0.49337233,1147.2,1145.4,1.3032371]
[1761590147611,1.089,1147.3,1145.4,1.3032371]
[1761590147812,0.49340334,1147.2,1145.4,1.3032371]
[1761590148015,1.089,1147.3,1145.4,1.3032371]
[1761590148217,0.49340334,1147.2,1145.4,1.3032371]
[1761590148512,1.089,1147.3,1145.4,1.3032371]
[1761590148712,0.49351063,1147.2,1145.4,1.3032371]
[1761590148912,0.64457714,1147.8,1145.4,1.3032371]
[1761590149114,0.49351055,1147.7,1145.4,1.3032371]
[1761590149313,0.49351055,1147.6,1145.4,1.3032371]
[1761590149517,0.49351055,1147.5,1145.4,1.3032371]
[1761590149717,0.49351055,1147.4,1145.4,1.3032371]
[1761590149917,0.49351055,1147.3,1145.4,1.3032371]
[1761590150118,0.49351055,1147.2,1145.4,1.3032371]
[1761590150319,0.64457714,1147.8,1145.4,1.3032371]
[1761590150515,0.49368058,1147.7,1145.4,1.3032371]
[1761590150718,0.64457714,1147.8,1145.4,1.3032371]
[1761590150719,0.49368058,1147.6,1145.4,1.3032371]
[1761590150916,0.49368058,1147.5,1145.4,1.3032371]
[1761590151218,0.49368058,1147.4,1145.5,1.3032371]
[1761590151416,1.50168058,1147.3,1145.5,1.3032371]
[1761590151619,0.49368058,1147.2,1145.5,1.3032371]
[1761590153820,1.008,1147.3,1145.6,1.3032371]
[1761590154521,0.49403374,1147.2,1145.6,1.3032371]
[1761590154718,1.008,1147.3,1145.7,1.3032371]
[1761590154916,1.008,1147.3,1145.6,1.3032371]
[1761590155922,0.49417677,1147.2,1145.6,1.3032371]
[1761590156221,1.008,1147.3,1145.6,1.3032371]
[1761590156421,0.49425712,1147.2,1145.6,1.3032371]
[1761590156622,1.008,1147.3,1145.6,1.3032371]
[1761590156823,0.49428037,1147.2,1145.6,1.3032371]
[1761590157020,1.008,1147.3,1145.6,1.3032371]
[1761590157323,0.49428027,1147.2,1145.5,1.3032371]
[1761590157519,1.008,1147.3,1145.6,1.3032371]
[1761590157719,0.49445518,1147.2,1145.6,1.3032371]
[1761590158023,1.008,1147.3,1145.6,1.3032371]
[1761590158325,0.49449937,1147.2,1145.6,1.3032371]
[1761590158524,0.49462468,1147.1,1145.6,1.3032371]
[1761590158725,1.008,1147.3,1145.6,1.3032371]
[1761590158924,0.4946612,1147.2,1145.6,1.3032371]
[1761590159126,0.4946612,1147.1,1145.6,1.3032371]
[1761590159426,1.008,1147.3,1145.6,1.3032371]
[1761590159721,0.49480598,1147.2,1145.6,1.3032371]
[1761590159925,0.49480598,1147.1,1145.6,1.3032371]
[1761590160125,1.008,1147.3,1145.6,1.3032371]
[1761590160423,0.49480605,1147.2,1145.6,1.3032371]
[1761590160725,1.008,1147.3,1145.6,1.3032371]
[1761590160726,0.49480605,1147.1,1145.6,1.3032371]
[1761590161021,1.008,1147.3,1145.6,1.3032371]
[1761590161322,0.49480705,1147.2,1145.6,1.3032371]
[1761590161526,0.49480705,1147.1,1145.6,1.3032371]
[1761590161824,1.008,1147.3,1145.6,1.3032371]
[1761590162023,0.49511941,1147.2,1145.6,1.3032371]
[1761590162221,0.49511941,1147.1,1145.6,1.3032371]
[1761590162420,1.008,1147.3,1145.6,1.3032371]
[1761590162624,0.49532092,1147.2,1145.6,1.3032371]
[1761590162925,0.49532092,1147.1,1145.7,1.3032371]
[1761590163124,1.008,1147.3,1145.7,1.3032371]
[1761590163327,0.49533845,1147.2,1145.7,1.3032371]
[1761590163522,0.49533845,1147.1,1145.7,1.3032371]
[1761590163824,1.008,1147.3,1145.7,1.3032371]
[1761590164021,0.49553423,1147.2,1145.7,1.3032371]
[1761590164223,0.49553423,1147.1,1145.7,1.3032371]
[1761590164426,0.4956638,1147.0,1145.7,1.3032371]
[1761590164627,1.008,1147.3,1145.7,1.3032371]
[1761590164926,0.4956638,1147.2,1145.8,1.3032371]
[1761590165128,0.4956638,1147.1,1145.8,1.3032371]
[1761590165323,0.4956638,1147.0,1145.8,1.3032371]
[1761590165522,1.008,1147.3,1145.8,1.3032371]
[1761590165726,0.49569781,1147.2,1145.8,1.3032371]
[1761590166023,0.49569781,1147.1,1145.8,1.3032371]
[1761590166226,0.49569781,1147.0,1145.8,1.3032371]
[1761590166426,1.008,1147.3,1145.8,1.3032371]
[1761590166626,0.49574057,1147.2,1145.8,1.3032371]
[1761590166827,0.49574057,1147.1,1145.8,1.3032371]
[1761590167025,0.49574057,1147.0,1145.8,1.3032371]
[1761590167227,1.008,1147.3,1145.8,1.3032371]
[1761590167427,0.49569856,1147.2,1145.9,1.3032371]
[1761590167626,0.49569856,1147.1,1145.9,1.3032371]
[1761590167926,1.008,1147.3,1145.9,1.3032371]
[1761590168128,0.49570027,1147.2,1145.9,1.3032371]
[1761590168326,0.49570027,1147.1,1145.9,1.3032371]
[1761590168529,1.008,1147.3,1145.9,1.3032371]
[1761590168829,0.49570503,1147.2,1145.9,1.3032371]
[1761590169128,0.49570503,1147.1,1145.9,1.3032371]
[1761590169326,1.008,1147.3,1145.9,1.3032371]
[1761590169530,0.49570412,1147.2,1145.9,1.3032371]
[1761590169829,0.49570412,1147.1,1145.8,1.3032371]
[1761590170029,1.008,1147.3,1145.8,1.3032371]
[1761590170326,1.008,1147.3,1144.7,2.28009043]
[1761590170327,0.49567904,1147.2,1145.7,1.3032371]
[1761590170529,0.49567904,1147.1,1145.7,1.3032371]
[1761590170825,0.49567904,1147.0,1145.7,1.3032371]
[1761590171129,1.008,1147.3,1145.7,1.3032371]
[1761590171329,0.49565819,1147.2,1145.7,1.3032371]
[1761590171628,0.49565819,1147.1,1145.7,1.3032371]
[1761590171828,1.008,1147.3,1145.7,1.3032371]
[1761590171829,0.49565819,1147.0,1145.7,1.3032371]
[1761590172026,1.008,1147.3,1145.7,1.3032371]
[1761590172230,0.4956617,1147.2,1145.7,1.3032371]
[1761590172526,0.4956617,1147.1,1145.7,1.3032371]
[1761590172829,1.008,1147.3,1145.8,1.3032371]
[1761590173026,0.49565506,1147.2,1145.8,1.3032371]
[1761590173329,0.49565506,1147.1,1145.8,1.3032371]
[1761590173527,1.008,1147.3,1145.8,1.3032371]
[1761590173727,0.49562622,1147.2,1145.8,1.3032371]
[1761590173931,0.49562622,1147.1,1145.8,1.3032371]
[1761590174231,1.008,1147.3,1145.8,1.3032371]
[1761590174430,0.49564661,1147.2,1145.8,1.3032371]
[1761590174626,0.49564661,1147.1,1145.8,1.3032371]
[1761590174828,1.008,1147.3,1145.8,1.3032371]
[1761590175129,0.49565426,1147.2,1145.9,1.3032371]
[1761590175327,0.49565426,1147.1,1145.9,1.3032371]
[1761590175532,1.008,1147.3,1145.9,1.3032371]
[1761590175732,0.49569907,1147.2,1145.9,1.3032371]
[1761590176030,0.49569907,1147.1,1145.9,1.3032371]
[1761590176233,1.008,1147.3,1145.9,1.3032371]
[1761590176432,0.495711,1147.2,1145.9,1.3032371]
[1761590176630,0.495711,1147.1,1145.9,1.3032371]
[1761590176834,1.008,1147.3,1145.9,1.3032371]
[1761590177035,0.49575856,1147.2,1145.8,1.3032371]
[1761590177235,0.49575856,1147.1,1145.8,1.3032371]
[1761590177432,0.49575856,1147.0,1145.7,1.3032371]
[1761590177635,1.008,1147.3,1145.7,1.3032371]
[1761590177834,0.49582642,1147.2,1145.7,1.3032371]
[1761590178032,0.49582642,1147.1,1145.7,1.3032371]
[1761590178233,0.49582642,1147.0,1145.7,1.3032371]
[1761590178435,1.008,1147.3,1145.7,1.3032371]
[1761590178634,0.49582024,1147.2,1145.7,1.3032371]
[1761590178835,0.49582024,1147.1,1145.7,1.3032371]
[1761590179035,0.49582024,1147.0,1145.7,1.3032371]
[1761590179337,1.008,1147.3,1145.7,1.3032371]
[1761590179538,0.49581821,1147.2,1145.7,1.3032371]
[1761590179735,0.49581821,1147.1,1145.7,1.3032371]
[1761590179938,0.49581821,1147.0,1145.7,1.3032371]
[1761590180134,1.008,1147.3,1145.7,1.3032371]
[1761590180339,0.49582211,1147.2,1145.7,1.3032371]
[1761590180539,0.49582211,1147.1,1145.7,1.3032371]
[1761590180743,0.49582211,1147.0,1145.7,1.3032371]
[1761590180942,1.008,1147.3,1145.7,1.3032371]
[1761590181237,0.49580854,1147.2,1145.7,1.3032371]
[1761590181441,0.49580854,1147.1,1145.7,1.3032371]
[1761590181737,0.49580854,1147.0,1145.7,1.3032371]
[1761590181941,1.008,1147.3,1145.7,1.3032371]
[1761590182142,0.49581962,1147.2,1145.7,1.3032371]
[1761590182342,0.49581962,1147.1,1145.7,1.3032371]
[1761590182641,0.49581962,1147.0,1145.7,1.3032371]
[1761590182838,1.008,1147.3,1145.7,1.3032371]
[1761590183042,0.49584939,1147.2,1145.7,1.3032371]
[1761590183242,0.49584939,1147.1,1145.7,1.3032371]
[1761590183540,0.49584939,1147.0,1145.7,1.3032371]
[1761590183743,1.008,1147.3,1145.7,1.3032371]
[1761590184040,0.49599295,1147.2,1145.7,1.3032371]
[1761590184340,0.49599295,1147.1,1145.7,1.3032371]
[1761590184544,0.49599295,1147.0,1145.7,1.3032371]
[1761590184743,1.008,1147.3,1145.7,1.3032371]
[1761590184944,0.49602438,1147.2,1145.7,1.3032371]
[1761590185144,0.49602438,1147.1,1145.7,1.3032371]
[1761590185340,0.49602438,1147.0,1145.7,1.3032371]
[1761590185541,1.008,1147.3,1145.7,1.3032371]
[1761590185741,0.49605084,1147.2,1145.7,1.3032371]
[1761590186040,0.49605084,1147.1,1145.7,1.3032371]
[1761590186245,0.49605084,1147.0,1145.7,1.3032371]
[1761590186443,1.008,1147.3,1145.7,1.3032371]
[1761590186645,0.49612981,1147.2,1145.7,1.3032371]
[1761590186946,0.49612981,1147.1,1145.8,1.3032371]
[1761590187146,0.49612981,1147.0,1145.8,1.3032371]
[1761590187342,1.008,1147.3,1145.8,1.3032371]
[1761590187545,0.49621028,1147.2,1145.8,1.3032371]
[1761590187744,0.49621028,1147.1,1145.8,1.3032371]
[1761590187947,1.008,1147.3,1145.8,1.3032371]
[1761590188145,0.49621028,1147.2,1145.8,1.3032371]
[1761590188345,0.49621028,1147.1,1145.8,1.3032371]
[1761590188544,0.49621028,1147.0,1145.8,1.3032371]
[1761590188748,1.008,1147.3,1145.8,1.3032371]
[1761590188947,0.49630018,1147.2,1145.8,1.3032371]
[1761590189147,0.49630018,1147.1,1145.8,1.3032371]
[1761590189448,0.49630018,1147.0,1145.8,1.3032371]
[1761590189650,1.008,1147.3,1145.8,1.3032371]
[1761590189847,0.49640767,1147.2,1145.8,1.3032371]
[1761590190046,0.49640767,1147.1,1145.8,1.3032371]
[1761590190245,0.49640767,1147.0,1145.8,1.3032371]
[1761590190446,1.008,1147.3,1145.8,1.3032371]
[1761590190648,0.49649514,1147.2,1145.8,1.3032371]
[1761590190950,0.49649514,1147.1,1145.8,1.3032371]
[1761590191149,0.49649514,1147.0,1145.8,1.3032371]
[1761590191346,1.008,1147.3,1145.8,1.3032371]
[1761590191546,0.49767527,1147.2,1145.8,1.3032371]
[1761590191851,0.49767527,1147.1,1145.8,1.3032371]
[1761590192050,0.49767527,1147.0,1145.8,1.3032371]
[1761590192350,1.008,1147.3,1145.8,1.3032371]
[1761590192552,0.49780111,1147.2,1145.8,1.3032371]
[1761590192751,0.49780111,1147.1,1145.8,1.3032371]
[1761590192952,0.49780111,1147.0,1145.8,1.3032371]
[1761590193150,1.008,1147.3,1145.8,1.3032371]
[1761590193349,0.49780885,1147.2,1145.9,1.3032371]
[1761590193551,0.49780885,1147.1,1145.8,1.3032371]
[1761590193751,0.49780885,1147.0,1145.8,1.3032371]
[1761590193952,1.008,1147.3,1145.8,1.3032371]
[1761590194151,0.49796323,1147.2,1145.8,1.3032371]
[1761590194351,0.49796323,1147.1,1145.9,1.3032371]
[1761590194551,0.49796323,1147.0,1145.9,1.3032371]
[1761590194752,0.49796323,1146.9,1145.9,1.3032371]
[1761590194952,1.008,1147.3,1145.9,1.3032371]
[1761590195156,0.49818781,1147.2,1145.9,1.3032371]
[1761590195353,0.49818781,1147.1,1145.9,1.3032371]
[1761590195555,0.49818781,1147.0,1145.9,1.3032371]
[1761590195852,0.49818781,1146.9,1145.9,1.3032371]
[1761590196051,1.008,1147.3,1145.9,1.3032371]
[1761590196254,0.49826797,1147.2,1145.9,1.3032371]
[1761590196456,0.49826797,1147.1,1145.9,1.3032371]
[1761590196756,0.49826797,1147.0,1145.9,1.3032371]
[1761590196956,0.49826797,1146.9,1145.9,1.3032371]
[1761590197154,1.008,1147.3,1145.9,1.3032371]
[1761590197456,0.49833702,1147.2,1145.9,1.3032371]
[1761590197654,0.49833702,1147.1,1145.9,1.3032371]
[1761590197853,0.49833702,1147.0,1145.9,1.3032371]
[1761590198056,0.49833702,1146.9,1145.9,1.3032371]
[1761590198254,1.008,1147.3,1145.9,1.3032371]
[1761590198458,0.49833643,1147.2,1145.9,1.3032371]
[1761590198758,0.49833643,1147.1,1145.9,1.3032371]
[1761590199054,0.49833643,1147.0,1145.9,1.3032371]
[1761590199255,0.49833643,1146.9,1145.9,1.3032371]
[1761590199458,1.008,1147.3,1145.9,1.3032371]
[1761590199660,0.49835494,1147.2,1145.9,1.3032371]
[1761590199855,0.49835494,1147.1,1145.9,1.3032371]
[1761590200058,0.49835494,1147.0,1145.9,1.3032371]
[1761590200360,0.49835494,1146.9,1145.9,1.3032371]
[1761590200560,0.49835494,1146.8,1145.5,0.15178445]
[1761590200855,0.49835494,1146.7,1145.5,0.15178445]
[1761590201061,1.008,1147.3,1145.5,0.15178445]
[1761590201257,0.49822192,1147.2,1145.5,0.15178445]
[1761590201458,0.49822192,1147.1,1145.5,0.15178445]
[1761590201759,0.49822192,1147.0,1145.5,1.45502155]
[1761590201962,0.49822192,1146.9,1145.5,1.45502155]
[1761590202161,1.65257714,1147.3,1145.5,1.45502155]
[1761590202162,0.49822192,1146.8,1145.5,1.45502155]
[1761590202360,0.49822192,1146.7,1145.5,1.45502155]
[1761590202558,1.65257714,1147.3,1145.5,1.45502155]
[1761590202759,0.49813067,1147.2,1145.5,1.45502155]
[1761590202958,0.49813067,1147.1,1145.5,1.45502155]
[1761590203158,0.49813067,1147.0,1145.5,1.45502155]
[1761590203363,0.49813067,1146.9,1145.5,1.45502155]
[1761590203659,0.49813067,1146.8,1145.5,1.45502155]
[1761590203960,1.008,1147.3,1145.5,1.45502155]
[1761590204160,0.4979134,1147.2,1145.5,1.45502155]
[1761590204360,0.4979134,1147.1,1145.5,1.45502155]
[1761590204564,0.4979134,1147.0,1145.6,1.3032371]
[1761590204764,0.4979134,1146.9,1145.6,1.3032371]
[1761590205064,0.4979134,1146.8,1145.6,1.3032371]
[1761590205263,1.65257714,1147.3,1145.6,1.3032371]
[1761590205464,0.4978164,1147.2,1145.6,1.3032371]
[1761590205661,0.4978164,1147.1,1145.6,1.3032371]
[1761590205965,0.4978164,1147.0,1145.6,1.3032371]
[1761590206161,0.4978164,1147.0,1145.5,0.15178445]
[1761590206162,0.4978164,1146.9,1145.5,1.45502155]
[1761590206366,0.4978164,1146.8,1145.5,1.45502155]
[1761590206566,1.65257714,1147.3,1145.5,1.45502155]
[1761590206764,0.49768057,1147.2,1145.5,1.45502155]
[1761590206967,0.49768057,1147.1,1145.6,1.3032371]
[1761590207171,0.49768057,1147.0,1145.6,1.3032371]
[1761590207465,0.49768057,1146.9,1145.7,1.3032371]
[1761590207767,0.64457714,1147.4,1145.7,1.3032371]
[1761590207968,0.49751347,1147.3,1145.7,1.3032371]
[1761590208264,0.49751347,1147.2,1145.7,1.3032371]
[1761590208567,0.49751347,1147.1,1145.7,1.3032371]
[1761590208764,0.49751347,1147.0,1145.7,1.3032371]
[1761590209066,0.49751347,1146.9,1145.7,1.3032371]
[1761590209267,1.48273497,1147.3,1145.8,1.3032371]
[1761590209564,1.33546787,1147.2,1145.8,1.3032371]
[1761590209862,0.49735613,1147.1,1145.8,1.3032371]
[1761590210061,0.49735613,1147.0,1145.8,1.3032371]
[1761590210262,0.49735613,1146.9,1146.0,1.3032371]
[1761590210463,0.64457714,1147.2,1146.0,1.3032371]
[1761590210667,0.49728191,1147.1,1146.0,1.3032371]
[1761590210865,0.49728191,1147.0,1146.0,1.3032371]
[1761590211170,1.62128191,1146.9,1146.0,1.3032371]
[1761590211367,1.124,1146.9,1146.0,1.3032371]
[1761590214973,0.49714473,1146.8,1146.0,1.3032371]
[1761590215170,1.124,1146.9,1145.9,1.3032371]
[1761590215373,0.4971084,1146.8,1145.9,1.3032371]
[1761590215573,1.124,1146.9,1145.9,1.3032371]
[1761590215772,0.49710985,1146.8,1145.9,1.3032371]
[1761590215973,1.124,1146.9,1145.9,1.3032371]
[1761590216775,1.124,1146.9,1146.0,1.3032371]
[1761590217269,0.49706834,1146.8,1145.9,1.3032371]
[1761590217473,1.124,1146.9,1145.9,1.3032371]
[1761590217769,0.49706835,1146.8,1145.9,1.3032371]
[1761590217972,1.124,1146.9,1145.9,1.3032371]
[1761590218174,0.49707483,1146.8,1145.9,1.3032371]
[1761590218374,1.124,1146.9,1145.9,1.3032371]
[1761590218574,0.49706426,1146.8,1145.9,1.3032371]
[1761590218770,1.124,1146.9,1145.8,1.3032371]
[1761590218975,0.49706426,1146.8,1145.8,1.3032371]
[1761590219275,1.124,1146.9,1145.8,1.3032371]
[1761590219476,0.49704295,1146.8,1145.8,1.3032371]
[1761590219776,1.124,1146.9,1145.8,1.3032371]
[1761590219974,0.49704295,1146.8,1145.8,1.3032371]
[1761590220177,1.124,1146.9,1145.8,1.3032371]
[1761590220472,0.49704885,1146.8,1145.8,1.3032371]
[1761590220676,1.124,1146.9,1145.8,1.3032371]
[1761590220877,0.49703731,1146.8,1145.8,1.3032371]
[1761590221074,1.124,1146.9,1145.7,1.3032371]
[1761590221273,0.49704903,1146.8,1145.7,1.3032371]
[1761590221478,1.124,1146.9,1145.7,1.3032371]
[1761590221774,0.49682399,1146.8,1145.7,1.3032371]
[1761590221977,1.124,1146.9,1145.7,1.3032371]
[1761590222174,0.49661542,1146.8,1145.7,1.3032371]
[1761590222474,1.124,1146.9,1145.7,1.3032371]
[1761590222672,0.49661291,1146.8,1145.7,1.3032371]
[1761590222876,1.124,1146.9,1145.7,1.3032371]
[1761590223180,0.49661291,1146.8,1145.7,1.3032371]
[1761590223376,1.124,1146.9,1145.7,1.3032371]
[1761590223577,0.49660706,1146.8,1145.7,1.3032371]
[1761590223778,1.124,1146.9,1145.7,1.3032371]
[1761590224076,0.49659485,1146.8,1145.7,1.3032371]
[1761590224276,1.124,1146.9,1145.7,1.3032371]
[1761590224478,0.49659369,1146.8,1145.7,1.3032371]
[1761590224774,1.124,1146.9,1145.7,1.3032371]
[1761590224972,0.49659375,1146.8,1145.7,1.3032371]
[1761590225177,1.124,1146.9,1145.7,1.3032371]
[1761590225377,0.49658638,1146.8,1145.7,1.3032371]
[1761590225575,1.124,1146.9,1145.7,1.3032371]
[1761590225776,0.49658626,1146.8,1145.7,1.3032371]
[1761590225981,1.124,1146.9,1145.7,1.3032371]
[1761590226275,0.49658626,1146.8,1145.7,1.3032371]
[1761590226479,1.124,1146.9,1145.7,1.3032371]
[1761590226676,0.49658816,1146.8,1145.7,1.3032371]
[1761590226879,1.124,1146.9,1145.7,1.3032371]
[1761590227177,0.49656718,1146.8,1145.7,1.3032371]
[1761590227376,1.124,1146.9,1145.7,1.3032371]
[1761590227574,0.49657085,1146.8,1145.7,1.3032371]
[1761590227778,1.124,1146.9,1145.7,1.3032371]
[1761590228074,0.49657085,1146.8,1145.7,1.3032371]
[1761590228279,0.64901117,1147.2,1145.7,1.3032371]
[1761590228476,0.49657195,1147.1,1145.7,1.3032371]
[1761590228679,0.49657195,1147.0,1145.7,1.3032371]
[1761590228878,0.49657195,1146.9,1145.7,1.3032371]
[1761590229076,0.49657195,1146.8,1145.7,1.3032371]
[1761590229276,0.64901117,1147.2,1145.7,1.3032371]
[1761590229580,0.49657502,1147.1,1145.7,1.3032371]
[1761590229781,0.49657502,1147.0,1145.6,1.3032371]
[1761590230080,0.49657502,1146.9,1145.5,1.45502155]
[1761590230278,0.49657502,1146.8,1145.5,1.45502155]
[1761590230478,0.64901117,1147.2,1145.5,1.45502155]
[1761590230479,0.49657502,1146.7,1145.5,1.45502155]
[1761590230682,0.64901117,1147.2,1145.5,1.45502155]
[1761590230882,1.29239889,1147.1,1145.5,0.15178445]
[1761590231081,0.49639889,1147.0,1145.5,0.15178445]
[1761590231282,0.49639889,1146.9,1145.5,0.15178445]
[1761590231479,0.49639889,1146.8,1145.5,0.15178445]
[1761590231782,0.49639889,1146.7,1145.5,0.15178445]
[1761590231977,0.796,1147.1,1145.5,0.15178445]
[1761590232181,0.49633617,1147.0,1145.5,0.15178445]
[1761590232380,0.49633617,1146.9,1145.5,0.15178445]
[1761590232579,0.49633617,1146.8,1145.5,0.15178445]
[1761590232779,0.49633617,1146.7,1145.5,0.15178445]
[1761590232978,0.796,1147.1,1145.5,0.15178445]
[1761590233284,0.49628947,1147.0,1145.5,0.15178445]
[1761590233583,0.49628947,1146.9,1145.5,0.15178445]
[1761590233779,0.49628947,1146.8,1145.5,0.15178445]
[1761590233979,0.49628947,1146.7,1145.5,0.15178445]
[1761590234283,0.796,1147.1,1145.5,0.15178445]
[1761590234580,0.49612785,1147.0,1145.5,0.15178445]
[1761590234880,0.49612785,1146.9,1145.5,0.15178445]
[1761590235078,0.49612785,1146.8,1145.5,0.15178445]
[1761590235284,0.49612785,1146.7,1145.5,0.15178445]
[1761590235580,0.796,1147.1,1145.5,0.15178445]
[1761590235784,0.4960901,1147.0,1145.5,0.15178445]
[1761590235983,0.4960901,1146.9,1145.5,1.45502155]
[1761590236180,0.4960901,1146.8,1145.5,1.45502155]
[1761590236382,0.4960901,1146.7,1145.5,1.45502155]
[1761590236685,1.44501117,1147.1,1145.5,0.15178445]
[1761590236984,0.49604271,1147.0,1145.5,0.15178445]
[1761590237181,0.49604271,1146.9,1145.5,0.15178445]
[1761590237386,0.49604271,1146.8,1145.5,0.15178445]
[1761590237682,0.49604271,1146.7,1145.5,0.15178445]
[1761590237886,0.796,1147.1,1145.5,0.15178445]
[1761590238188,0.49601856,1147.0,1145.5,0.15178445]
[1761590238381,0.796,1147.1,1145.5,0.15178445]
[1761590238382,0.49601856,1146.9,1145.5,0.15178445]
[1761590238585,0.49601856,1146.8,1145.5,0.15178445]
[1761590238783,0.49601856,1146.7,1145.5,0.15178445]
[1761590238982,0.796,1147.1,1145.5,0.15178445]
[1761590239186,0.49602938,1147.0,1145.5,0.15178445]
[1761590239481,0.49602938,1146.9,1145.5,0.15178445]
[1761590239682,0.49602938,1146.8,1145.5,1.45502155]
[1761590239885,0.49602938,1146.7,1145.5,1.45502155]
[1761590240086,0.796,1147.1,1145.5,1.45502155]
[1761590240286,0.49599457,1147.0,1145.5,1.45502155]
[1761590240588,0.49599457,1146.9,1145.5,1.45502155]
[1761590240789,0.49599457,1146.8,1145.5,1.45502155]
[1761590241086,0.49599457,1146.7,1145.5,1.45502155]
[1761590241387,1.44501117,1147.1,1145.5,1.45502155]
[1761590241592,0.49596801,1147.0,1145.5,1.45502155]
[1761590241886,0.49596801,1146.9,1145.5,1.45502155]
[1761590242085,0.49596801,1146.8,1145.5,1.45502155]
[1761590242290,0.49596801,1146.7,1145.5,1.45502155]
[1761590242490,0.796,1147.1,1145.5,1.45502155]
[1761590242687,0.49596017,1147.0,1145.5,1.45502155]
[1761590242892,0.49596017,1146.9,1145.5,0.15178445]
[1761590243092,0.49596017,1146.8,1145.5,0.15178445]
[1761590243292,0.49596017,1146.7,1145.5,0.15178445]
[1761590243492,1.44501117,1147.1,1145.5,1.45502155]